bitfinex/quotes_ETHUSD_20250608
["timestamp","ask_amount","ask_price","bid_price","bid_amount"]
[1749345041498,18.864,2517.1,2517.0,27.01898371]
[1749345041699,18.864,2517.1,2517.0,27.40943889]
[1749345041927,18.864,2517.1,2517.0,20.36343889]
[1749345042112,18.864,2517.1,2517.0,26.85343889]
[1749345042501,18.864,2517.1,2517.0,20.36343889]
[1749345042703,18.864,2517.1,2517.0,4.36343889]
[1749345042932,18.864,2517.1,2517.0,10.85243889]
[1749345043350,18.864,2517.1,2517.0,26.85243889]
[1749345051154,17.172,2517.1,2517.0,26.85243889]
[1749345051452,18.864,2517.1,2517.0,26.85243889]
[1749345055544,18.864,2517.1,2517.0,20.36343889]
[1749345055748,18.864,2517.1,2517.0,26.84743889]
[1749345056924,18.864,2517.1,2517.0,31.56743889]
[1749345059694,18.864,2517.1,2517.0,31.56343889]
[1749345059975,19.6249,2517.1,2517.0,31.56343889]
[1749345061038,19.6249,2517.1,2517.0,31.56443889]
[1749345062399,19.6249,2517.1,2517.0,25.08343889]
[1749345062684,19.6249,2517.1,2517.0,31.56243889]
[1749345062862,19.6249,2517.1,2517.0,26.84243889]
[1749345063276,19.6249,2517.1,2517.0,20.36343889]
[1749345063494,24.29787407,2517.1,2517.0,26.45298371]
[1749345064056,24.29787407,2517.1,2517.0,26.45398371]
[1749345064458,24.29787407,2517.1,2517.0,26.45298371]
[1749345065272,24.29787407,2517.1,2517.0,3.97298371]
[1749345065449,24.29787407,2517.1,2517.0,10.45198371]
[1749345067109,0.7609,2517.0,2516.7,0.40282353]
[1749345067326,3.19068741,2517.0,2516.9,19.97314156]
[1749345068878,3.19068741,2517.0,2516.9,26.45014156]
[1749345070223,3.19068741,2517.0,2516.9,26.44914156]
[1749345070614,3.19068741,2517.0,2516.9,26.44814156]
[1749345071289,3.19068741,2517.0,2516.9,26.44714156]
[1749345072325,0.7609,2517.0,2516.9,26.44714156]
[1749345072924,18.864,2517.1,2517.0,3.97298371]
[1749345073099,18.864,2517.1,2517.0,19.97298371]
[1749345079230,18.864,2517.1,2517.0,26.44598371]
[1749345090611,18.864,2517.1,2517.0,26.44498371]
[1749345092204,18.864,2517.1,2517.0,19.97298371]
[1749345092408,18.864,2517.1,2517.0,26.44498371]
[1749345092634,18.864,2517.1,2517.0,19.97298371]
[1749345092838,18.864,2517.1,2517.0,26.44498371]
[1749345124059,18.864,2517.1,2517.0,19.97298371]
[1749345124366,0.8027,2517.0,2516.9,6.471]
[1749345124510,0.8027,2517.0,2516.3,3.97407593]
[1749345124511,14.38482458,2517.0,2516.3,3.97401465]
[1749345124718,2.77310241,2516.4,2516.3,3.97401465]
[1749345124912,4.44610241,2516.4,2516.3,10.44501465]
[1749345126009,0.8027,2516.4,2516.3,10.44501465]
[1749345126245,1.97040241,2517.0,2516.8,3.97329942]
[1749345126445,1.673,2516.9,2516.8,3.97329942]
[1749345126651,5.20434024,2516.9,2516.8,3.97329942]
[1749345126854,3.53134024,2516.9,2516.8,3.97329942]
[1749345127011,2.4757,2516.9,2516.8,3.97329942]
[1749345127627,17.9747,2517.1,2517.0,3.97298371]
[1749345127824,19.6477,2517.1,2517.0,10.44398371]
[1749345134534,19.6477,2517.1,2516.8,3.97329165]
[1749345134535,19.6477,2517.1,2516.4,16.0]
[1749345134769,21.88344585,2517.1,2516.8,3.9732994]
[1749345135070,21.88344585,2517.1,2516.9,6.471]
[1749345135433,2.70975846,2517.0,2516.7,3.97337848]
[1749345135659,2.70975846,2517.0,2516.8,6.471]
[1749345135854,2.45932043,2516.9,2516.8,10.4442284]
[1749345140476,19.6477,2517.1,2517.0,3.97298371]
[1749345140678,19.6477,2517.1,2517.0,10.44398371]
[1749345142145,19.6477,2517.1,2517.0,6.471]
[1749345143274,19.6477,2517.1,2516.9,3.97305847]
[1749345143468,19.6477,2517.1,2517.0,6.471]
[1749345143778,21.08074585,2517.1,2516.8,3.97320851]
[1749345144085,2.70975846,2517.0,2516.9,6.471]
[1749345144251,2.70975846,2517.0,2516.6,3.973523]
[1749345144252,2.70975846,2517.0,2515.0,15.82647753]
[1749345144452,3.53015846,2516.5,2516.3,3.97407953]
[1749345144657,3.53015846,2516.5,2516.4,10.44493101]
[1749345144881,5.55617431,2516.5,2516.4,6.471]
[1749345145043,5.55617431,2516.5,2516.4,10.44493101]
[1749345145551,5.55617431,2516.5,2516.4,3.97393101]
[1749345145753,5.55617431,2516.5,2516.4,10.44493101]
[1749345146980,2.84641585,2516.5,2516.4,10.44493101]
[1749345149189,5.55617431,2516.5,2516.3,3.97404935]
[1749345149364,5.55617431,2516.5,2516.3,6.471]
[1749345149365,0.55561743,2516.4,2516.3,6.471]
[1749345149878,0.8204,2516.3,2515.5,4.74615281]
[1749345150078,0.55561743,2516.4,2515.8,3.97476418]
[1749345150079,0.8204,2516.0,2515.8,3.97476418]
[1749345150290,2.02501585,2515.9,2515.8,10.44678016]
[1749345150954,1.672,2515.9,2515.8,10.44678016]
[1749345153288,1.672,2515.9,2515.8,3.97478016]
[1749345157761,0.8204,2516.4,2515.8,16.7708]
[1749345157966,1.672,2516.3,2516.2,3.97422052]
[1749345158193,1.673,2516.3,2516.2,19.97422052]
[1749345158374,1.673,2516.3,2516.2,20.74502052]
[1749345158576,0.8204,2516.8,2516.7,3.9734573]
[1749345158781,2.4934,2516.8,2516.7,3.9734573]
[1749345160513,1.673,2516.8,2516.7,3.9734573]
[1749345162632,17.9839,2517.1,2517.0,3.97298371]
[1749345162764,18.844,2517.1,2517.0,3.97298371]
[1749345164003,18.844,2517.1,2516.9,3.9731297]
[1749345164306,18.844,2517.1,2516.9,3.97299265]
[1749345164603,18.844,2517.1,2517.0,3.97298371]
[1749345183456,18.844,2517.1,2517.0,4.78438371]
[1749345184467,18.844,2517.1,2517.0,10.44298371]
[1749345186460,18.843,2517.1,2517.0,10.44298371]
[1749345188855,18.843,2517.1,2517.0,11.25438371]
[1749345193265,18.843,2517.1,2517.0,29.96414217]
[1749345193665,18.843,2517.1,2517.0,27.25438371]
[1749345193909,18.843,2517.1,2517.0,27.25338371]
[1749345195306,1.18644724,2518.5,2517.8,5.32412134]
[1749345195510,17.173,2519.0,2518.9,3.96998689]
[1749345195814,18.844,2519.0,2518.9,3.96998689]
[1749345196116,0.7981,2518.9,2518.5,6.507]
[1749345196416,0.7981,2518.7,2518.6,3.97035358]
[1749345201916,0.7981,2518.7,2518.5,6.51]
[1749345202119,0.7981,2518.7,2518.5,10.48051948]
[1749345202281,0.7981,2518.7,2518.6,3.97045977]
[1749345202627,1.31598585,2518.7,2518.6,3.97045977]
[1749345203324,0.7981,2518.7,2518.6,3.97045977]
[1749345209340,1.671,2518.8,2518.7,3.97030213]
[1749345213705,1.684,2519.1,2519.0,0.7732]
[1749345213904,1.684,2519.1,2519.0,20.74302929]
[1749345214104,1.684,2519.1,2519.0,26.52882929]
[1749345214310,1.684,2519.1,2519.0,3.96982929]
[1749345214535,2.4699,2519.1,2518.9,3.96994348]
[1749345214706,2.4699,2519.1,2519.0,3.96982929]
[1749345214921,2.4699,2519.1,2519.0,10.53082929]
[1749345215617,2.4699,2519.1,2519.0,10.52982929]
[1749345217128,2.4699,2519.1,2519.0,3.96982929]
[1749345217344,2.4699,2519.1,2519.0,10.52582929]
[1749345217540,2.4699,2519.1,2518.9,3.96993335]
[1749345217738,2.4699,2519.1,2519.0,10.52582929]
[1749345219363,2.4699,2519.1,2519.0,3.96982929]
[1749345225836,2.71689,2519.1,2518.3,0.8035]
[1749345226040,2.71689,2519.1,2518.5,16.0]
[1749345226238,2.71689,2519.1,2518.8,3.97012576]
[1749345226449,2.71689,2519.1,2518.3,16.8035]
[1749345226450,2.71689,2519.1,2518.9,3.96997239]
[1749345227083,0.37043959,2519.0,2518.9,3.96997239]
[1749345227268,1.06709815,2519.0,2518.9,3.96997239]
[1749345227445,0.69665856,2519.0,2518.9,3.96997239]
[1749345227643,1.06709089,2519.0,2518.9,3.96997239]
[1749345227859,1.06708625,2519.0,2518.9,3.96997239]
[1749345228040,0.69665856,2519.0,2518.9,3.96997239]
[1749345229463,0.69665856,2519.0,2518.8,3.97010598]
[1749345231159,2.71689,2519.1,2518.8,3.97010598]
[1749345232848,17.162,2519.0,2518.8,3.97010598]
[1749345233656,17.162,2519.0,2518.9,3.96998689]
[1749345234003,17.162,2519.0,2518.8,3.97002841]
[1749345234982,19.149889,2519.0,2518.8,3.97002841]
[1749345236401,19.149889,2519.0,2518.6,6.543]
[1749345236552,19.149889,2519.0,2518.9,3.96998689]
[1749345236753,19.149889,2519.0,2518.8,3.97005557]
[1749345238894,19.149889,2519.0,2518.7,3.97025879]
[1749345239109,19.149889,2519.0,2518.8,3.97010978]
[1749345240700,19.149889,2519.0,2518.7,3.97024795]
[1749345240911,19.149889,2519.0,2518.3,0.8035]
[1749345240912,1.38444129,2518.9,2518.3,0.8035]
[1749345241071,6.14909944,2518.9,2518.4,3.9707037]
[1749345241270,3.97015562,2518.8,2518.4,6.523]
[1749345241491,6.14909581,2518.9,2518.4,10.49375085]
[1749345241685,3.29756965,2518.8,2518.4,10.49375085]
[1749345241885,2.9268927,2518.8,2518.4,10.49375085]
[1749345243513,2.9268927,2518.8,2518.4,6.523]
[1749345243879,2.9268927,2518.8,2518.4,10.49370389]
[1749345244916,3.97053225,2518.6,2518.1,10.49012921]
[1749345245216,1.702,2518.5,2518.2,3.97106745]
[1749345245696,1.702,2518.5,2518.3,3.97091287]
[1749345249003,1.702,2518.5,2518.4,3.97077509]
[1749345251999,0.7946,2518.7,2518.5,3.97054534]
[1749345252204,1.702,2518.6,2518.4,3.97068534]
[1749345252520,1.702,2518.6,2518.4,3.97072843]
[1749345252713,1.702,2518.6,2518.5,3.97061743]
[1749345254205,2.07258863,2518.6,2518.5,3.97061743]
[1749345254405,2.07258863,2518.6,2518.4,3.97070319]
[1749345254606,1.702,2518.6,2518.4,3.97070319]
[1749345255213,1.702,2518.6,2518.3,3.97085711]
[1749345255214,1.702,2518.6,2518.5,3.97061743]
[1749345261354,1.702,2518.6,2518.3,3.97088543]
[1749345261556,1.702,2518.6,2518.5,3.97061743]
[1749345264712,18.867,2518.6,2518.5,3.97061743]
[1749345272675,19.23812582,2518.6,2518.5,3.97061743]
[1749345272931,18.867,2518.6,2518.5,3.97061743]
[1749345273088,19.23812731,2518.6,2518.5,3.97061743]
[1749345273721,19.23812467,2518.6,2518.5,3.97061743]
[1749345273925,19.23809438,2518.6,2518.5,3.97061743]
[1749345274129,18.867,2518.6,2518.5,3.97061743]
[1749345275118,19.23804628,2518.6,2518.5,3.97061743]
[1749345275425,19.23807474,2518.6,2518.5,3.97061743]
[1749345275625,18.867,2518.6,2518.5,3.97061743]
[1749345276901,19.23805755,2518.6,2518.5,3.97061743]
[1749345277402,18.867,2518.6,2518.5,3.97061743]
[1749345277608,18.867,2518.6,2518.0,3.97131339]
[1749345277609,3.97069233,2518.5,2518.0,3.97131339]
[1749345277821,7.44475126,2518.4,2517.8,3.97159854]
[1749345278029,1.72885126,2518.3,2517.9,3.97148299]
[1749345278346,0.7791,2518.3,2517.8,3.97172134]
[1749345278738,0.7791,2518.3,2517.9,3.97142667]
[1749345278907,0.7791,2518.3,2518.0,3.97127339]
[1749345279637,23.66,2518.6,2518.3,3.97078585]
[1749345279837,2.8561715,2518.5,2518.3,3.97078585]
[1749345280150,1.685,2518.5,2518.4,3.97077509]
[1749345285471,3.57,2518.5,2518.4,3.97077509]
[1749345286244,1.685,2518.5,2518.4,3.97077509]
[1749345289861,17.165,2518.6,2518.5,3.97061743]
[1749345290069,18.85,2518.6,2518.5,3.97061743]
[1749345296166,19.22058281,2518.6,2518.5,3.97061743]
[1749345296876,19.22058281,2518.6,2518.4,10.45369252]
[1749345297076,18.85,2518.6,2518.5,3.97061743]
[1749345297283,20.81156,2518.6,2518.5,3.97061743]
[1749345297968,20.81156,2518.6,2518.4,10.45369249]
[1749345300776,20.81156,2518.6,2518.3,3.97085103]
[1749345300981,20.81156,2518.6,2518.0,4.80440023]
[1749345301186,1.3707,2518.3,2517.2,4.79438222]
[1749345301343,1.3707,2518.3,2517.4,3.97222668]
[1749345301344,0.8207,2517.9,2517.4,3.97222668]
[1749345301672,0.8207,2517.9,2517.4,3.97224914]
[1749345301673,1.685,2517.8,2517.4,3.97224914]
[1749345301838,1.685,2517.8,2517.5,6.485]
[1749345302533,1.685,2517.8,2517.4,3.97224914]
[1749345302534,1.685,2517.8,2517.6,3.97203061]
[1749345302743,1.07127,2517.7,2517.3,3.97251022]
[1749345302941,1.07127,2517.7,2517.5,3.97216039]
[1749345303245,1.07127,2517.7,2517.4,3.97233862]
[1749345303765,1.07127,2517.7,2517.3,6.497]
[1749345303766,1.07127,2517.7,2517.5,3.97218287]
[1749345304757,1.07127,2517.7,2517.5,3.97216119]
[1749345305362,0.8207,2517.7,2517.5,3.97216119]
[1749345305868,1.688,2517.6,2517.5,3.97216119]
[1749345306463,1.688,2517.6,2517.4,3.97229007]
[1749345306862,3.97224608,2517.5,2517.0,3.97298371]
[1749345307077,5.660042,2517.6,2517.1,3.97269775]
[1749345307386,0.6480742,2517.5,2517.1,3.97269775]
[1749345307583,7.33004136,2517.5,2516.8,3.97316418]
[1749345307881,7.33004136,2517.5,2516.9,19.97301641]
[1749345307882,0.8207,2517.3,2516.9,19.97301641]
[1749345308088,17.169,2517.2,2516.9,16.0]
[1749345308483,17.169,2517.2,2517.0,3.97297682]
[1749345308686,18.96797,2517.2,2516.9,19.9730642]
[1749345308886,18.96797,2517.2,2516.9,16.0]
[1749345309195,18.96797,2517.2,2516.8,19.97315957]
[1749345309484,18.96797,2517.2,2516.9,3.97312202]
[1749345309687,18.96797,2517.2,2516.8,19.97324713]
[1749345310199,18.96797,2517.2,2516.9,3.97314156]
[1749345311405,18.96797,2517.2,2516.8,16.0]
[1749345311581,18.96797,2517.2,2516.9,3.97313015]
[1749345311760,2.628867,2517.1,2516.9,3.97313015]
[1749345311958,1.688,2517.0,2516.9,3.97313015]
[1749345312958,1.688,2517.0,2516.7,10.46937747]
[1749345313164,1.688,2517.0,2516.8,3.97329623]
[1749345313911,1.688,2517.0,2516.8,3.97322202]
[1749345315793,1.688,2517.0,2516.7,6.496]
[1749345315998,1.688,2517.0,2516.9,3.97314156]
[1749345318092,17.169,2517.2,2516.8,0.7696]
[1749345318220,1.688,2517.0,2516.9,3.97314156]
[1749345322307,17.169,2517.2,2517.1,3.97282587]
[1749345322640,18.858,2517.2,2517.1,3.97282587]
[1749345324414,21.3931,2517.2,2516.8,0.7696]
[1749345324622,21.3931,2517.2,2517.0,3.97297978]
[1749345324839,21.3931,2517.2,2516.9,3.97306399]
[1749345325044,21.3931,2517.2,2517.0,3.97289607]
[1749345325807,21.3931,2517.2,2517.1,3.97282587]
[1749345326248,19.7041,2517.2,2517.1,3.97282587]
[1749345326448,21.3931,2517.2,2517.1,3.97282587]
[1749345326749,21.3931,2517.2,2517.0,3.97292998]
[1749345326907,21.3931,2517.2,2516.9,3.97309681]
[1749345327102,21.3931,2517.2,2516.8,3.97323013]
[1749345327419,21.3931,2517.2,2515.2,3.97573629]
[1749345327420,6.50946424,2517.1,2516.4,9.46341128]
[1749345327622,3.97321631,2516.9,2516.4,8.69382704]
[1749345328146,3.97321631,2516.9,2516.4,24.69382704]
[1749345328318,11.25094923,2517.0,2516.5,3.97373991]
[1749345328501,1.77604619,2516.9,2516.5,3.97373991]
[1749345328939,1.77604619,2516.9,2516.4,3.97392084]
[1749345329359,1.77604619,2516.9,2516.6,3.97360882]
[1749345331872,1.77604619,2516.9,2516.7,3.97339732]
[1749345332072,1.689,2516.8,2516.7,3.97339732]
[1749345332954,1.689,2516.8,2516.6,3.97353383]
[1749345334940,1.689,2516.8,2516.6,3.97353931]
[1749345337453,17.176,2516.7,2516.6,3.97353931]
[1749345339266,17.176,2516.7,2516.6,4.74313931]
[1749345341587,17.176,2516.7,2516.6,20.74313931]
[1749345341791,18.855,2516.7,2516.6,27.22113931]
[1749345342801,17.176,2516.7,2516.6,27.22113931]
[1749345343003,18.855,2516.7,2516.6,27.22113931]
[1749345360498,18.855,2516.7,2516.6,20.74313931]
[1749345360703,18.855,2516.7,2516.6,19.97353931]
[1749345360896,18.855,2516.7,2516.6,26.44953931]
[1749345361126,21.5743,2516.7,2516.5,3.97369876]
[1749345361401,21.5743,2516.7,2516.6,10.44961519]
[1749345367251,19.613,2516.7,2516.6,10.44961519]
[1749345368258,17.176,2516.7,2516.6,10.44961519]
[1749345368428,18.851,2516.7,2516.6,26.44961519]
[1749345372739,18.851,2516.7,2516.6,27.77871519]
[1749345375062,18.851,2516.7,2516.6,27.22871519]
[1749345375262,18.851,2516.7,2516.6,20.75271519]
[1749345375464,18.851,2516.7,2516.6,26.44961519]
[1749345377436,17.176,2516.7,2516.6,26.44961519]
[1749345377623,18.851,2516.7,2516.6,27.22871519]
[1749345383676,17.176,2516.7,2516.6,27.22871519]
[1749345383853,18.851,2516.7,2516.6,27.22871519]
[1749345385572,18.851,2516.7,2516.6,31.16961519]
[1749345385780,18.851,2516.7,2516.6,24.69361519]
[1749345385976,18.851,2516.7,2516.6,31.16961519]
[1749345386177,18.851,2516.7,2516.6,24.69361519]
[1749345386555,19.6023,2516.7,2516.6,31.16961519]
[1749345389667,18.851,2516.7,2516.6,31.16961519]
[1749345391355,18.851,2516.7,2516.6,26.44961519]
[1749345400406,18.851,2516.7,2516.6,19.97361519]
[1749345400576,21.56753,2516.7,2516.6,26.44961519]
[1749345400775,21.56753,2516.7,2516.6,19.97361519]
[1749345401108,21.56753,2516.7,2516.5,3.97369016]
[1749345401325,20.81123,2516.7,2516.5,3.97369016]
[1749345401485,20.81123,2516.7,2516.6,6.476]
[1749345401667,20.81123,2516.7,2516.6,10.44961519]
[1749345402067,21.56753,2516.7,2516.6,10.44961519]
[1749345407979,0.7563,2516.6,2516.0,3.85714931]
[1749345408180,0.7563,2516.4,2516.1,6.476]
[1749345408521,0.7563,2516.2,2516.1,6.476]
[1749345408694,0.7563,2516.2,2516.0,0.7412]
[1749345409019,2.90434215,2516.1,2516.0,0.7412]
[1749345409381,6.87874698,2516.1,2516.0,0.7412]
[1749345410616,9.58850544,2516.1,2516.0,0.7412]
[1749345411279,27.08070499,2516.1,2516.0,0.61469363]
[1749345411522,27.08070499,2516.1,2515.1,6.476]
[1749345411523,0.7563,2515.3,2515.1,6.476]
[1749345411705,18.852,2515.2,2515.1,6.476]
[1749345412717,18.852,2515.2,2515.1,10.45198505]
[1749345415224,18.852,2515.2,2515.1,6.476]
[1749345415521,18.852,2515.2,2515.1,10.45198505]
[1749345415685,18.852,2515.2,2515.1,6.476]
[1749345415885,18.852,2515.2,2515.1,10.45198505]
[1749345417122,18.853,2515.2,2515.1,10.45198505]
[1749345419236,17.177,2515.2,2515.1,10.45198505]
[1749345419541,18.853,2515.2,2515.1,10.45198505]
[1749345431813,17.177,2515.2,2515.1,27.22978505]
[1749345432007,18.852,2515.2,2515.1,27.22978505]
[1749345432209,18.852,2515.2,2515.1,20.75378505]
[1749345432492,18.852,2515.2,2515.1,19.97598505]
[1749345432720,18.852,2515.2,2515.1,26.45498505]
[1749345436933,18.852,2515.2,2515.1,27.23278505]
[1749345439529,17.177,2515.2,2515.1,27.23278505]
[1749345439726,18.852,2515.2,2515.1,27.78278505]
[1749345443715,17.177,2515.2,2515.1,27.78278505]
[1749345443917,18.852,2515.2,2515.1,27.78278505]
[1749345458455,18.852,2515.2,2515.1,19.97598505]
[1749345458650,21.64866,2515.2,2515.1,3.97598505]
[1749345458876,21.64866,2515.2,2515.1,10.45198505]
[1749345459077,21.64866,2515.2,2515.1,26.45198505]
[1749345459613,21.64866,2515.2,2515.1,3.97598505]
[1749345459754,21.64866,2515.2,2515.1,10.45198505]
[1749345459960,21.64866,2515.2,2515.1,26.45198505]
[1749345460195,21.64866,2515.2,2515.1,10.45198505]
[1749345465375,0.8286,2515.1,2514.7,16.39987118]
[1749345465598,2.993466,2515.1,2515.0,3.97614314]
[1749345465898,2.993466,2515.1,2515.0,10.45214314]
[1749345467416,2.993466,2515.1,2513.5,6.34903857]
[1749345467417,0.8286,2515.0,2513.5,6.34903857]
[1749345467575,0.8286,2515.0,2513.2,5.55047753]
[1749345467576,0.8286,2514.2,2513.8,4.20768843]
[1749345467765,1.674,2514.1,2513.8,4.20775829]
[1749345467963,1.674,2514.1,2513.8,4.20771493]
[1749345468160,0.8286,2514.2,2514.1,3.97756652]
[1749345468673,2.5026,2514.2,2514.1,3.97756652]
[1749345468873,0.8286,2514.2,2514.1,3.97756652]
[1749345469085,2.5026,2514.2,2514.1,3.97756652]
[1749345469898,0.8286,2514.2,2514.1,3.97756652]
[1749345470111,2.5026,2514.2,2514.1,3.97756652]
[1749345473121,0.8286,2514.2,2514.1,3.97756652]
[1749345473277,2.5036,2514.2,2514.1,3.97756652]
[1749345473820,0.8286,2514.2,2514.1,3.97756652]
[1749345473998,0.8173,2514.4,2514.3,3.97715625]
[1749345474198,2.4923,2514.4,2514.3,3.97715625]
[1749345475266,0.8173,2514.4,2514.3,3.97715625]
[1749345475507,6.97418533,2514.9,2514.7,3.97658874]
[1749345475714,3.18971853,2514.8,2514.7,3.97658874]
[1749345476009,18.864,2514.8,2514.7,3.97661748]
[1749345476213,18.864,2514.8,2514.7,19.97661748]
[1749345477611,18.864,2514.8,2514.7,26.49161748]
[1749345479532,18.864,2514.8,2514.7,30.01287594]
[1749345479938,17.189,2514.8,2514.7,30.01287594]
[1749345480109,18.864,2514.8,2514.7,30.01287594]
[1749345482420,17.189,2514.8,2514.7,30.01287594]
[1749345482625,18.864,2514.8,2514.7,30.01287594]
[1749345483290,18.864,2514.8,2514.7,30.56287594]
[1749345484130,17.189,2514.8,2514.7,30.56287594]
[1749345484438,17.08069922,2514.8,2514.7,27.85311748]
[1749345488442,17.08069922,2514.8,2514.7,30.23811748]
[1749345488839,17.08069922,2514.8,2514.7,27.85311748]
[1749345490339,11.65051812,2514.8,2514.7,27.85311748]
[1749345491146,0.8111,2516.6,2516.2,3.97420257]
[1749345491329,0.8111,2516.4,2516.1,3.97430646]
[1749345491531,0.8111,2516.2,2516.1,3.97440483]
[1749345494544,0.8111,2516.2,2516.0,3.97450997]
[1749345495914,0.8111,2516.2,2515.9,10.47670871]
[1749345496114,0.8111,2516.0,2515.6,3.97511502]
[1749345496318,0.8111,2515.8,2515.6,3.97511502]
[1749345496553,0.66666667,2515.8,2515.6,3.97511502]
[1749345496756,0.8111,2515.7,2515.6,3.97511502]
[1749345497348,1.39885251,2515.7,2515.5,3.97528439]
[1749345497749,1.39885251,2515.7,2515.6,3.97519478]
[1749345498624,0.8111,2515.7,2515.6,3.97519478]
[1749345500261,2.5001,2515.7,2515.6,3.97519478]
[1749345502552,0.66666667,2515.8,2515.6,19.97519478]
[1749345502756,0.66666667,2515.8,2515.7,26.47203676]
[1749345503081,2.35566667,2515.8,2515.7,26.47203676]
[1749345511644,19.53666667,2515.8,2515.7,26.47203676]
[1749345514045,19.53666667,2515.8,2515.7,26.47703676]
[1749345514249,19.53666667,2515.8,2515.7,19.97503676]
[1749345515784,21.57280334,2515.8,2515.7,19.97503676]
[1749345516481,19.53666667,2515.8,2515.7,19.97503676]
[1749345522267,17.84766667,2515.8,2515.7,19.97503676]
[1749345522468,19.53466667,2515.8,2515.7,19.97503676]
[1749345523598,17.84766667,2515.8,2515.7,19.97503676]
[1749345523767,19.53466667,2515.8,2515.7,19.97503676]
[1749345531117,17.84766667,2515.8,2515.7,19.97503676]
[1749345531329,19.53466667,2515.8,2515.7,19.97503676]
[1749345533506,19.53466667,2515.8,2515.7,16.0]
[1749345533707,21.57060334,2515.8,2515.5,4.72]
[1749345533906,0.8247,2515.7,2515.5,4.72]
[1749345534109,0.8247,2515.7,2515.5,8.69528064]
[1749345534572,0.8247,2515.7,2515.6,3.97519478]
[1749345534771,0.8247,2515.7,2515.5,8.69529209]
[1749345536320,0.8247,2515.7,2515.5,3.97529209]
[1749345536837,0.8247,2515.7,2515.6,3.97519478]
[1749345537042,0.8247,2515.7,2515.4,3.97544625]
[1749345537238,0.8247,2515.7,2515.2,3.97580014]
[1749345537454,4.3815789,2515.7,2515.4,3.97548231]
[1749345539215,4.3815789,2515.7,2515.5,3.97530645]
[1749345542749,4.3815789,2515.7,2515.6,3.97519478]
[1749345548343,4.3815789,2515.7,2515.5,3.97529566]
[1749345548771,4.3815789,2515.7,2515.5,3.97534328]
[1749345550279,4.3815789,2515.7,2515.6,3.97519478]
[1749345550493,4.3815789,2515.7,2515.5,3.97529266]
[1749345551355,4.3815789,2515.7,2515.4,19.97543182]
[1749345551562,4.3815789,2515.7,2515.5,3.97533883]
[1749345551760,2.39162456,2515.6,2515.3,16.0]
[1749345551961,2.39162456,2515.6,2515.4,3.97543341]
[1749345552143,0.8247,2515.7,2515.4,3.97543341]
[1749345552577,0.8247,2515.7,2515.5,3.97530817]
[1749345553182,0.8247,2515.7,2515.6,3.97519478]
[1749345553360,2.4997,2515.7,2515.6,3.97519478]
[1749345559596,0.8247,2515.7,2515.6,3.97519478]
[1749345559819,2.4997,2515.7,2515.6,3.97519478]
[1749345560582,17.181,2515.8,2515.6,3.97519478]
[1749345560762,1.675,2515.7,2515.6,3.97519478]
[1749345561879,17.181,2515.8,2515.7,3.97503676]
[1749345562104,18.856,2515.8,2515.7,3.97503676]
[1749345562526,19.22532187,2515.8,2515.7,3.97503676]
[1749345562731,21.50877219,2515.8,2515.6,3.97511783]
[1749345563033,3.97527988,2515.6,2514.8,9.5197456]
[1749345563195,3.53315846,2515.5,2515.0,3.97599549]
[1749345563395,8.90723757,2515.5,2515.0,3.97599549]
[1749345563711,4.93188395,2515.5,2515.0,3.97599549]
[1749345564111,4.93188395,2515.5,2515.1,3.97598505]
[1749345564815,4.93188395,2515.5,2515.2,3.97580501]
[1749345566027,4.93188395,2515.5,2515.3,3.9756642]
[1749345566234,4.93188395,2515.5,2515.2,3.97576107]
[1749345567248,0.49318839,2515.4,2514.9,3.97629336]
[1749345567526,1.31658839,2515.4,2514.9,3.97614346]
[1749345567843,1.31658839,2515.4,2514.9,3.97630124]
[1749345568425,1.675,2515.3,2514.9,3.97630124]
[1749345568736,0.8234,2514.8,2514.3,3.97715645]
[1749345568900,8.181,2514.7,2514.4,3.97706623]
[1749345569080,0.8234,2514.8,2514.3,3.97717223]
[1749345569284,1.676,2514.7,2514.5,3.97678569]
[1749345571028,1.676,2514.7,2514.4,3.97701012]
[1749345571414,1.676,2514.7,2514.4,3.97702436]
[1749345571882,0.8234,2514.8,2514.4,3.97702436]
[1749345572079,1.676,2514.6,2514.4,3.97702436]
[1749345572298,17.186,2514.5,2514.4,3.97702436]
[1749345572533,17.186,2514.5,2514.2,16.0]
[1749345572687,17.186,2514.5,2514.1,3.97751043]
[1749345572688,0.7724,2514.4,2514.0,10.48063173]
[1749345572891,0.7724,2514.4,2514.1,3.97742717]
[1749345573598,0.7724,2514.4,2514.2,3.97735388]
[1749345574024,0.7724,2514.4,2514.1,3.97749763]
[1749345574630,2.73584,2514.4,2514.1,3.9775416]
[1749345574935,2.73584,2514.4,2513.8,0.2297646]
[1749345574936,2.70975846,2514.2,2513.8,0.2297646]
[1749345575226,2.70975846,2514.2,2513.8,4.20780355]
[1749345575428,6.515,2514.2,2514.0,3.97771831]
[1749345575611,7.71105985,2514.2,2513.8,0.2297646]
[1749345575815,0.7724,2514.3,2514.1,3.97753333]
[1749345576015,1.676,2514.2,2514.1,3.97756652]
[1749345579735,17.9584,2514.5,2514.3,3.97715356]
[1749345579901,1.676,2514.4,2514.3,3.97715356]
[1749345580437,17.186,2514.5,2514.4,3.97709195]
[1749345580636,18.862,2514.5,2514.4,3.97709195]
[1749345582422,18.883,2514.5,2514.4,10.49409195]
[1749345583935,17.186,2514.5,2514.4,10.49409195]
[1749345584137,18.883,2514.5,2514.4,26.49409195]
[1749345584302,17.186,2514.5,2514.4,27.29779195]
[1749345584500,18.883,2514.5,2514.4,27.29779195]
[1749345585034,17.186,2514.5,2514.4,27.29779195]
[1749345585338,18.883,2514.5,2514.4,27.29779195]
[1749345586800,17.186,2514.5,2514.4,27.29779195]
[1749345587094,18.883,2514.5,2514.4,27.29779195]
[1749345589540,18.883,2514.5,2514.4,32.01779195]
[1749345596188,17.186,2514.5,2514.4,32.01779195]
[1749345596311,18.882,2514.5,2514.4,32.01779195]
[1749345598244,17.186,2514.5,2514.4,32.01779195]
[1749345598553,18.882,2514.5,2514.4,32.01779195]
[1749345600949,17.186,2514.5,2514.4,32.01779195]